Cogmind - Beta 16 --- EXPLORER MODE // 2025.11.03 @ 10:23:28 Player: K.K.Y. Result: Destroyed by 5X-7M2(R) with Subdweller Laser Performance ------------- Evolutions (0) 0 Regions Visited (2) 400 Robots Destroyed (6) 30 Value Destroyed (86) 86 Prototype IDs (0) 0 Alien Tech Used (0) 0 Bonus (0) 0 TOTAL SCORE: 516 Bonus ------- None Cogmind --------- Core Integrity 0/250 Matter 252/300 Energy 84/100 System Corruption 0% Temperature Cool (6) Movement Core (1400) Ox27 Location -10/Subcaves Parts ------- > --- POWER (1) -------- (None) > --- PROPULSION (2) --- (None) > --- UTILITY (3) ------ Huge Storage Unit ECM Suite > --- WEAPON (2) ------- Assault Rifle > --- INVENTORY (25) --- Huge Storage Unit Huge Storage Unit Tractor Beam Assault Rifle Peak State ------------ > --- POWER ------------ Ion Engine > --- PROPULSION ------- Aluminum Leg Aluminum Leg > --- UTILITY ---------- Medium Storage Unit Sensor Array ECM Suite > --- WEAPON ----------- EM Pulse Gun Datajack > --- INVENTORY -------- Assault Rifle Assault Rifle [Rating: 8] Favorites ----------- Power Ion Engine Engine Ion Engine Propulsion Aluminum Leg Leg Aluminum Leg Utility Sensor Array Device Sensor Array Storage Huge Storage Unit Protection Light Armor Plating Weapon Datajack Energy Gun EM Pulse Gun Ballistic Gun Assault Rifle Special Weapon Welding Torch Special Melee Weapon Datajack Build | -11 -10 -10 ------- Run | Yrd Mat Sub Slots Evolved 1 | . 1 . Power . | . . . Propulsion . | . . . Utility 1 | . 1 . Weapon . | . . . Parts Attached 13 | 6 6 1 Power 1 | 1 . . Engine 1 | 1 . . Core . | . . . Reactor . | . . . Propulsion 2 | 2 . . Treads . | . . . Leg 2 | 2 . . Wheel . | . . . Hover . | . . . Flight . | . . . Utility 5 | 1 4 . Device 2 | . 2 . Storage 2 | 1 1 . Processor . | . . . Hackware . | . . . Protection 1 | . 1 . Artifact . | . . . Weapon 5 | 2 2 1 Energy Gun 1 | 1 . . Energy Cannon . | . . . Ballistic Gun 2 | 1 . 1 Ballistic Cannon . | . . . Launcher . | . . . Special Weapon 1 | . 1 . Impact Weapon . | . . . Slashing Weapon . | . . . Piercing Weapon . | . . . Special Melee Weapon 1 | . 1 . Unidentified Prototypes . | . . . Parts Lost 6 | . . 6 Power 1 | . . 1 Propulsion 2 | . . 2 Utility 1 | . . 1 Weapon 2 | . . 2 Highest Loss Streak 6 | . . 6 To Critical Strikes 1 | . . 1 Average Backups 3 | 1 3 4 Power . | . . . Propulsion . | . . . Utility 2 | . 1 3 Weapon 1 | . 1 1 Tool/Special . | . . . Unused Backups 3 | . . 3 Power . | . . . Propulsion . | . . . Utility 3 | . . 3 Weapon . | . . . Tool/Special . | . . . Average Slot Usage (%) 94 | . 89 98 Engine 11 | . 11 11 Leg 24 | . 25 24 Device 19 | . 13 25 Storage 12 | . 12 12 Energy Gun 10 | . 9 11 Ballistic Gun 1 | . 2 . Special Melee Weapon 11 | . 10 11 Peak Build Rating 8 | 6 8 8 Average Rating 7 | 3 7 7 On Entrance 4 | . 6 8 Avg Prop Armor Cover (%) . | . . . Naked Turns . | . . . Heaviest Build 92 | 19 91 92 Greatest Support 20 | 20 20 20 Greatest Overweight (x) 4 | . 4 4 Average Overweight (x) 2 | . 1 4 Largest Inventory Capacity 25 | 10 25 25 Average Capacity 20 | 8 17 25 Most Carried 5 | 5 5 5 Average Carried 3 | 1 3 4 Final Capacity 25 | 10 25 25 Final Carried 5 | 1 5 4 Class Distribution -------------------- 100% | Hacker-Mutant Dominant Class ---------------- Hacker-Mutant | -10/Materials Hacker-Mutant | -10/Subcaves Resources | -11 -10 -10 ----------- Run | Yrd Mat Sub Matter Collected 312 | 191 121 . Remotely . | . . . Salvage Created 138 | . 138 . Parts 13 | . 13 . Haulers Intercepted . | . . . Recyclers Shooed 1 | . 1 . Parts Field Recycled . | . . . Retrieved Matter . | . . . Parts Self-Destructed . | . . . Prevented . | . . . Parts Restored . | . . . Kills | -11 -10 -10 ------- Run | Yrd Mat Sub Combat Hostiles Destroyed 3 | . 3 . Guns 3 | . 3 . Classes Destroyed 5 | . 5 . Worker 1 | . 1 . Builder 1 | . 1 . Watcher 1 | . 1 . Swarmer 2 | . 2 . Grunt 1 | . 1 . Best Kill Streak 6 | . 6 . Combat Bots Only 3 | . 3 . Max Kills in Single Turn 3 | . 3 . Gunslinging . | . . . Exploded . | . . . Melee . | . . . Uniques/NPCs Destroyed . | . . . Combat | -11 -10 -10 -------- Run | Yrd Mat Sub Hostile Shots Fired 69 | . 6 63 Missed 24 | . 3 21 Hits 45 | . 3 42 Projectile 45 | . 3 42 AOE 4 | . . 4 Critical Strikes 2 | . . 2 Damage Taken 658 | . 31 627 Core 252 | . 4 248 Absorbed by Shields . | . . . Ignored by Resistances 396 | . 21 375 Core Remaining (%) 100 | 100 . . Volleys Fired 32 | . 23 9 Largest 1 | . 1 1 Hottest 40 | . 40 20 Shots Fired 32 | . 23 9 Gun 15 | . 6 9 Cannon . | . . . Launcher . | . . . Special 17 | . 17 . Kinetic 10 | . 1 9 Thermal 17 | . 17 . Explosive . | . . . Electromagnetic 5 | . 5 . Robot Hit Streak 15 | . 7 15 Robot Miss Streak 1 | . 1 . Penetration Max . | . . . Secondary Targets . | . . . Shots Hit Robots 16 | . 8 8 Core Hits 8 | . 7 1 Critical Kills . | . . . Critical Parts Destroyed . | . . . Critical Strikes . | . . . Melee Attacks 2 | . 2 . Impact . | . . . Slashing . | . . . Piercing . | . . . Sneak Attacks 1 | . 1 . Combat Hostiles . | . . . Follow-up Attacks . | . . . Damage Inflicted 247 | . 156 91 Guns 163 | . 72 91 Cannons . | . . . Explosions 76 | . 76 . Melee . | . . . Ramming . | . . . Kinetic 91 | . . 91 Thermal 84 | . 84 . Explosive . | . . . Electromagnetic 72 | . 72 . Impact . | . . . Slashing . | . . . Piercing . | . . . Highest Corruption . | . . . Average Corruption . | . . . Corruption Purged . | . . . Corruption Blocked . | . . . Overload Shots . | . . . Overflow Damage . | . . . Projectiles . | . . . Explosions . | . . . Melee . | . . . Knockbacks . | . . . Impact . | . . . Kinetic . | . . . Secondary . | . . . Self-Inflicted Damage 18 | . 18 . Shots 1 | . 1 . Rammed . | . . . Targets Rammed . | . . . Kicked . | . . . Crushed . | . . . Highest Temperature 12 | . 12 . Average Temperature 12 | . 12 . Received Heat Transfer 102 | . 6 96 Siege Activations . | . . . Martial Activations . | . . . Shielding Activations . | . . . Robots Disrupted . | . . . Combat Hostiles . | . . . Robots Corrupted . | . . . Combat Hostiles . | . . . Parts Fried . | . . . Impact Corruptions . | . . . Robots Melted . | . . . Combat Hostiles . | . . . Parts Melted 1 | . 1 . Heat Transferred 150 | . 150 . Parts Sabotaged . | . . . Parts Stolen . | . . . Parts Stripped . | . . . Power Chain Reactions 1 | . 1 . Alert | -11 -10 -10 ------- Run | Yrd Mat Sub Maximum Alert Level . | . . . Low Security (%) 100 | 100 100 . Level 1 . | . . . Level 2 . | . . . Level 3 . | . . . Level 4 . | . . . Level 5 . | . . . High Security . | . . . Max Security . | . . . Peak Influence 80 | . 80 . Initial . | . . . Average 10 | . 11 . Influence Increases 110 | . 110 . Destroy 0b10 Robot/C 60 | . 60 . Destroy 0b10 Robot/NC 15 | . 15 . Destroy Leader 12 | . 12 . Disable Machine 4 | . 4 . Destroy Structure 4 | . 4 . Lose Combat Pursuer 15 | . 15 . Influence Decreases 110 | . 110 . Time Decay 110 | . 110 . Squads Dispatched . | . . . Investigation . | . . . Extermination . | . . . Reinforcement . | . . . Assault . | . . . Garrison . | . . . Intercept . | . . . Searches Triggered . | . . . Construction Impeded . | . . . Haulers Reinforced . | . . . Active Scanning Responses . | . . . Cargo Convoy Interrupts . | . . . Stealth | -11 -10 -10 --------- Run | Yrd Mat Sub Distress Signals 1 | . 1 . Communications Jammed . | . . . Distress Signals . | . . . Times Spotted 11 | . 5 6 Peak Tracking Total 6 | . 3 6 Tactical Retreats 1 | . 1 . Traps | -11 -10 -10 ------- Run | Yrd Mat Sub Traps Triggered 2 | . 2 . Indirectly . | . . . Trap Hack Attempts . | . . . Triggered . | . . . Disarmed . | . . . Reprogrammed . | . . . Reused . | . . . Traps Extracted . | . . . Installed . | . . . Triggered . | . . . Machines | -11 -10 -10 ---------- Run | Yrd Mat Sub Machines Disabled 1 | . 1 . Max in Single Turn 1 | . 1 . Machines Repaired . | . . . Machines Dismantled . | . . . Machines Sabotaged . | . . . Overloaded Fab Kills . | . . . Hacking | -11 -10 -10 --------- Run | Yrd Mat Sub Machines Accessed 1 | . 1 . Terminals 1 | . 1 . Fabricators . | . . . Repair Stations . | . . . Recycling Units . | . . . Scanalyzers . | . . . Garrison Access . | . . . Total Hacks 1 | . 1 . Successful 1 | . 1 . Failed . | . . . Catastrophic . | . . . Database Lockouts . | . . . Manual . | . . . Terminals 1 | . 1 . Fabricators . | . . . Repair Stations . | . . . Recycling Units . | . . . Scanalyzers . | . . . Garrison Access . | . . . Terminal Hacks 1 | . 1 . Zone Layout 1 | . 1 . Fabricator Hacks . | . . . Repair Station Hacks . | . . . Recycling Unit Hacks . | . . . Scanalyzer . | . . . Garrison Access Hacks . | . . . Unauthorized Hacks . | . . . Terminals . | . . . Fabricators . | . . . Repair Stations . | . . . Recycling Units . | . . . Scanalyzers . | . . . Garrison Access . | . . . Data Cores Recovered . | . . . Used . | . . . Hacking Detections . | . . . Full Trace Events . | . . . Feedback Events . | . . . Feedback Blocked . | . . . Robot Schematics Acquired . | . . . Robots Built . | . . . Authchips . | . . . Time . | . . . Total Robot Build Rating . | . . . Part Schematics Acquired . | . . . Parts Built . | . . . Authchips . | . . . Time . | . . . Total Part Build Rating . | . . . Part Studies Acquired . | . . . Parts Repaired . | . . . Time . | . . . Parts Recycled . | . . . Recycled Matter . | . . . Retrieved Matter . | . . . Retrieved Components . | . . . Parts Scanalyzed . | . . . Part Schematics Acquired . | . . . Parts Damaged . | . . . Bothacking | -11 -10 -10 ------------ Run | Yrd Mat Sub Used RIF Installer . | . . . Robots Hacked 1 | . 1 . Non-combat 1 | . 1 . Combat . | . . . Robot Hacks Applied 1 | . 1 . no_distress 1 | . 1 . Relay Couplers Released . | . . . Fabnet Peak Effective % . | . . . Robots Rewired . | . . . Allies Hacked . | . . . Hacks Repelled . | . . . Allies | -11 -10 -10 -------- Run | Yrd Mat Sub Total Allies . | . . . Largest Group . | . . . Highest-Rated Group . | . . . Highest-Rated Ally . | . . . Total Orders . | . . . Ally Attacks . | . . . Total Damage . | . . . Kills . | . . . Allies Corrupted . | . . . Allies Melted . | . . . Intel | -11 -10 -10 ------- Run | Yrd Mat Sub Active Infowar (turns) 774 | . 248 526 Sensors 771 | . 248 523 ECM 760 | . 234 526 Robot Analysis Total . | . . . Derelict Logs Recovered . | . . . Drone Launches . | . . . Drone Recoveries . | . . . Exploration | -11 -10 -10 ------------- Run | Yrd Mat Sub Turns Passed 1002 | 46 430 526 Spaces Moved 322 | 40 160 122 Core 19 | 19 . . Treads . | . . . Legs 303 | 21 160 122 Wheels . | . . . Hover . | . . . Flight . | . . . Fastest Speed 50 | 50 120 400 Average Speed 273 | 86 223 400 Slowest Speed 400 | 120 400 400 Overloaded Moves . | . . . Propulsion Burnouts . | . . . Robots Hopped . | . . . Potential Cave-ins . | . . . Cave-ins Triggered . | . . . Exploration Rate (%) 17 | 4 38 9 Regions Visited 2 Branch Regions 1 Pre-discovered Areas . | . . . Known Exits Taken 2 | 1 1 . Unknown Exits Taken . | . . . Scrap Searched . | . . . Spaces Dug . | . . . Terrain Destroyed 3 | . 3 . Melee . | . . . Projectile . | . . . AOE 3 | . 3 . Terrain Rammed . | . . . Walls Destroyed . | . . . Machines Disabled . | . . . Actions | -11 -10 -10 --------- Run | Yrd Mat Sub Total 411 | 51 209 151 Wait 19 | . . 19 Move 320 | 39 159 122 Hop . | . . . Pick Up 17 | 6 11 . Fast Attach 1 | 1 . . Attach 14 | 5 8 1 Detach 3 | . 3 . Swap 1 | . 1 . Drop 2 | . 2 . Fire 32 | . 23 9 Melee 2 | . 2 . Ram . | . . . Kick . | . . . Crush . | . . . Escape Stasis . | . . . Rewire . | . . . Trap . | . . . Miscellaneous . | . . . Route ------- -11/Scrapyard -10/Materials (discovered 2 exits: *Mat / *Sub) -10/Subcaves (discovered 1 exit: *Mat) History --------- Turn | Location | Event 6 | -11/Scrapyard | Identified exit to Materials 6 | -11/Scrapyard | Discovered exit to Materials (range 16) 47 | -11/Scrapyard | Entered Materials 47 | -10/Materials | Evolved 1 slot: Utility x1 144 | -10/Materials | Identified exit to Materials 144 | -10/Materials | Discovered exit to Materials (range 13) 317 | -10/Materials | Build established: Hacker-Mutant 449 | -10/Materials | Identified exit to Subcaves 449 | -10/Materials | Discovered exit to Subcaves (range 7) 477 | -10/Materials | Entered Subcaves 478 | -10/Subcaves | Approached by a straggling Scientist 801 | -10/Subcaves | Identified exit to Materials 801 | -10/Subcaves | Discovered exit to Materials (range 5) 968 | -10/Subcaves | Ambushed by Subdweller buried in earth 972 | -10/Subcaves | Ambushed by Subdweller buried in earth 994 | -10/Subcaves | Core integrity fell below 50% 999 | -10/Subcaves | Core integrity fell below 20% 1003 | -10/Subcaves | Destroyed by 5X-7M2(R) with Subdweller Laser Last Messages --------------- separated from was talking about a shortcut back to the UFD." 6A-QMR(c): "I think it's somewhere southeast of here" 00801_ EXIT=FOUND: MATERIALS 6A-QMR(c): "I think it's somewhere southeast of here" [Achievement: Do Not Disturb] 00969_ 5X-7M2(R): "ARGHSUB!" 00970_ Datajack destroyed. 00973_ TT-J09(R): "GOODGOOD!" 00976_ Critical hit (Destroy). 00976_ EM Pulse Gun destroyed. 00986_ Aluminum Leg destroyed. 6A-QMR(c): "I think it's somewhere east of here" 00990_ Ion Engine destroyed. 00997_ Destroyed Scrap Shield. 01000_ Aluminum Leg destroyed. 01000_ Sensor Array destroyed. 01001_ TT-J09(R) destroyed. Map ----- +----------------------------------------------------+ | ??????????????## ##??????????????????????????? | | ??????????????# < #???????????????????????????? | | ???????????#### ###???????????????????????????? | | ??????????## ###?????????????????????????????? | | ??????????# #???????????????????????????????? | | ??????????### #???????????????????????????????? | | ???????????# ##???????????????????????????????? | | ???????????# #?###????????????????????????????? | | ???????????# ### ##???????????????????????????? | | ???????????# ## ##??????????????????????????? | | ???????????# ##?????????????????????????? | | ???????????## #?????????????????????????? | | ????????# ## ##????????????????????????? | | ?????????# #????????????????????????? | | ?????????## #????????????????????????? | | ??????????## ## ###??????????????????????? | | ???????????## ## ####???????????????????? | | ????????????### ## ; ##??????????????????? | | ??????????????# ## #??????????????????? | | ??????????????#####; #??????????????????? | | ??????????????????# #???????????????????? | | ??????????????????# #???????????????????? | | ??????????????????# R #???????????????????? | | ??????????????????#; #????????????????????? | | ?????????????????### ;#????????????????????? | | ?????????? @%&#????????????????????? | | ????????? ;#???????????????????? | | ?????????? ## R #???????????????????? | | ??????????# ???##### R ##???????????????????? | | ???????????#?????????# #????????????????????? | | ?????????????????????#" " " ????????????????????? | | ?????????????????????##"" " ???????????????????? | | ??????????????????????#"" R ??????????????????? | | ??????????????????????#"" ### ??????????????????? | | ??????????????????????"? ##??" ?????????????????? | | ???????????????????????? ##???? #????????????????? | | ????????????????????????#???????#????????????????? | | ?????????????????????????????????????????????????? | | ?????????????????????????????????????????????????? | | ?????????????????????????????????????????????????? | | ?????????????????????????????????????????????????? | | ?????????????????????????????????????????????????? | | ?????????????????????????????????????????????????? | | ?????????????????????????????????????????????????? | | ?????????????????????????????????????????????????? | | ?????????????????????????????????????????????????? | | ?????????????????????????????????????????????????? | | ?????????????????????????????????????????????????? | | ?????????????????????????????????????????????????? | | ?????????????????????????????????????????????????? | +----------------------------------------------------+ Best States ------------- Heat Dissipation 25 Energy Generation 10 Energy Capacity 250 Matter Stores 300 Matter Capacity 300 Sight Range 16 Robot Scan Range 14 Terrain Scan Density 10 ECM Strength 1 Armor Coverage 150 Resistance: KI 35 Resistance: TH 35 Resistance: EX 35 Resistance: EM 35 Resistance: I 35 Resistance: S 35 Resistance: P 35 Evasion (%) 55 Offensive Hacking 20 Item Schematics ----------------- None Robot Schematics ------------------ None Fabricated ------------ Nothing Repaired ---------- Nothing Studied --------- None Alien Tech Used ----------------- None Achievements -------------- Do Not Disturb Challenges ------------ None Game ------ Seed AbsorptionEncryptedLance Manual? 0 Play Time 00:06:09 Cumulative 16.5 hours Start 2025.11.03 @ 10:18:32 End 2025.11.03 @ 10:23:28 Sessions 1 Manual Loads 0 Difficulty Explorer Special Mode None Game No. 21 Rogue 0 Adventurer 0 Explorer 21 Win Type - Total 0 Types 0/0/0/0/0/0/0/0/0/0 Lore% 24 Gallery% 28 Achievement% 27 Wizard Run 0 Options --------- Layout 1 ASCII 0 Keyboard 0 Movement Mouse Keybinds 0 Fullscreen 1 Font 24/Smallcaps Map View 50x35 Zoom Use 0% Tactical HUD 1 Map Filters NONE Filters NONE Steam 1 RUN: 3bbac1ca-680c-4737-a2bf-baf63ce11dba